bitfinex-derivatives/quotes_ETHF0:USTF0_20251006
["timestamp","ask_amount","ask_price","bid_price","bid_amount"]
[1759719101156,0.4831568,4544.5,4544.4,0.8692899]
[1759719101355,1.3163568,4544.5,4544.4,0.8692899]
[1759719102051,1.0933568,4544.5,4544.4,0.8692899]
[1759719102256,1.0933568,4544.5,4543.1,0.2477]
[1759719102257,0.5015,4543.2,4543.1,0.2477]
[1759719102450,1.47963,4543.2,4543.1,0.2477]
[1759719103160,1.47963,4543.2,4543.1,0.4831]
[1759719103362,1.47963,4543.2,4543.1,0.4852183]
[1759719103552,0.3591,4543.5,4543.1,0.4852183]
[1759719103751,0.39599,4543.7,4543.4,0.4831]
[1759719103954,1.10260611,4543.6,4543.5,0.3835]
[1759719104156,1.10260611,4543.6,4543.1,0.0021183]
[1759719104157,0.1407,4543.5,4543.1,0.0021183]
[1759719104354,0.1407,4543.5,4542.0,0.1497]
[1759719104355,3.5669,4543.2,4542.7,0.3835]
[1759719104561,1.00623,4543.2,4543.1,0.4831]
[1759719104857,1.06566401,4543.2,4543.1,0.8666]
[1759719105357,1.06566401,4543.2,4542.0,0.1497]
[1759719105358,0.3918,4542.5,4542.4,0.2477]
[1759719105562,1.62039,4542.5,4542.4,0.25039041]
[1759719106660,1.2243,4542.5,4542.4,0.25039041]
[1759719107053,1.2243,4542.5,4542.4,0.00269041]
[1759719107258,4.91538775,4542.5,4542.4,4.1e-07]
[1759719107560,7.28404737,4542.5,4542.4,4.1e-07]
[1759719108457,4.58697775,4542.5,4542.4,4.1e-07]
[1759719108663,1.60217775,4542.5,4542.4,4.1e-07]
[1759719108855,4.80997775,4542.5,4542.4,4.1e-07]
[1759719109356,7.63597727,4542.5,4542.4,4.1e-07]
[1759719109864,7.41297727,4542.5,4542.4,4.1e-07]
[1759719110164,7.63597727,4542.5,4542.4,4.1e-07]
[1759719110556,12.41297727,4542.5,4542.4,4.1e-07]
[1759719110756,12.63597727,4542.5,4542.4,4.1e-07]
[1759719112667,13.12177727,4542.5,4542.4,4.1e-07]
[1759719114370,5.07277775,4542.5,4542.4,4.1e-07]
[1759719114770,5.29577775,4542.5,4542.4,4.1e-07]
[1759719115360,5.07277775,4542.5,4542.4,4.1e-07]
[1759719115560,4.67668775,4542.5,4542.4,0.49770041]
[1759719116065,3.69108775,4542.5,4542.4,0.86990041]
[1759719116266,3.4308,4542.5,4542.4,0.86990041]
[1759719116564,0.4945,4543.0,4542.4,0.86990041]
[1759719116565,0.4945,4543.0,4542.4,1.26600041]
[1759719116764,0.7387,4543.0,4542.9,0.2553]
[1759719116961,1.30239907,4543.0,4542.9,0.8699]
[1759719117158,0.598,4543.0,4542.9,0.8699]
[1759719117362,1.05830325,4543.0,4542.9,0.8699]
[1759719117767,1.30250325,4543.0,4542.9,0.8699]
[1759719119770,1.30250325,4543.0,4542.9,0.4977]
[1759719120268,1.30250325,4543.0,4542.9,5.8699]
[1759719120269,0.48150325,4543.0,4542.9,5.8699]
[1759719120570,0.598,4543.8,4543.7,0.8699]
[1759719120769,1.30279371,4543.8,4543.7,0.8699]
[1759719121970,1.30279371,4543.8,4543.7,0.4977]
[1759719122870,0.2442,4542.7,4542.6,3.7055]
[1759719123167,1.45868,4542.7,4542.4,4.1e-07]
[1759719123475,0.152,4542.5,4542.4,4.1e-07]
[1759719125470,0.375,4542.5,4542.4,4.1e-07]
[1759719125669,0.152,4542.5,4542.4,4.1e-07]
[1759719125875,0.375,4542.5,4542.4,4.1e-07]
[1759719126574,0.152,4542.5,4542.4,4.1e-07]
[1759719126779,0.375,4542.5,4542.4,4.1e-07]
[1759719127074,0.85756065,4542.5,4542.4,4.1e-07]
[1759719127263,3.69629516,4542.5,4542.4,4.1e-07]
[1759719127869,0.6378,4541.3,4541.2,3.2078]
[1759719128072,0.88204,4540.8,4540.7,3.4631]
[1759719128279,0.821,4540.8,4540.7,0.4977]
[1759719128574,0.3538,4541.3,4541.2,0.4977]
[1759719128766,0.5768,4541.3,4541.2,0.4977]
[1759719128975,1.30633001,4541.3,4541.2,0.49947522]
[1759719129669,1.08333001,4541.3,4541.2,0.49947522]
[1759719129870,1.32493001,4541.3,4541.2,0.25707522]
[1759719130073,1.54793001,4541.3,4541.2,0.25707522]
[1759719130275,1.54793001,4541.3,4541.2,0.00177522]
[1759719132177,1.32493001,4541.3,4541.2,0.49947522]
[1759719132379,1.54793001,4541.3,4541.2,0.49947522]
[1759719133374,1.54793001,4541.3,4541.2,0.00177522]
[1759719133769,5.36049242,4541.3,4540.2,3.2078]
[1759719133973,0.8396,4540.3,4540.2,3.4631]
[1759719134174,1.0626,4540.3,4540.2,3.4631]
[1759719134774,0.223,4540.3,4540.2,3.7072215]
[1759719135073,0.223,4540.3,4540.2,4.0794215]
[1759719136281,0.5768,4540.3,4540.2,4.0794215]
[1759719136483,1.45889,4540.3,4540.2,3.4648215]
[1759719136880,1.0626,4540.3,4540.2,3.4648215]
[1759719137780,1.0626,4540.3,4540.2,3.2095215]
[1759719138181,0.2513,4539.8,4539.3,0.3599]
[1759719138481,1.08,4539.7,4539.6,0.2403]
[1759719138882,1.08,4539.7,4539.6,0.4985]
[1759719139287,1.08,4539.7,4539.6,0.00176799]
[1759719139884,1.08,4539.7,4539.6,0.24206799]
[1759719140382,1.08,4539.7,4539.6,0.00176799]
[1759719140584,10.76165847,4539.7,4538.6,3.2078]
[1759719140782,0.857,4538.7,4538.6,3.2078]
[1759719140989,1.081,4538.7,4538.6,3.2078]
[1759719141377,1.081,4538.7,4538.6,3.4481]
[1759719141581,1.081,4538.7,4538.6,3.45039832]
[1759719142080,1.081,4538.7,4538.6,3.21009832]
[1759719142579,1.081,4538.7,4538.6,0.00229832]
[1759719142784,4.2888,4538.7,4538.6,0.00229832]
[1759719147078,7.38936092,4538.7,4538.6,0.00229832]
[1759719147294,0.39649,4538.0,4537.5,3.2078]
[1759719147490,1.61839,4538.0,4537.5,3.2078]
[1759719148182,1.62035884,4538.0,4537.9,0.02436518]
[1759719148787,1.22386884,4538.0,4537.9,0.02436518]
[1759719148991,1.62035884,4538.0,4537.9,0.02436518]
[1759719149786,0.4928,4537.1,4537.0,3.2078]
[1759719150092,0.39651,4537.8,4537.7,0.8584]
[1759719150280,1.23601,4537.8,4537.7,0.8584]
[1759719150794,1.23601,4537.8,4537.7,0.86061264]
[1759719150985,0.39845884,4538.0,4537.9,0.8584]
[1759719151284,1.62035884,4538.0,4537.9,0.4985]
[1759719151794,0.62245884,4538.0,4537.9,0.8584]
[1759719152289,1.01395884,4538.0,4537.9,0.8584]
[1759719152679,1.23795884,4538.0,4537.9,0.8584]
[1759719152879,1.01395884,4538.0,4537.9,0.8584]
[1759719153184,0.00196884,4538.0,4537.9,0.8584]
[1759719153492,0.22596884,4538.0,4537.9,0.8584]
[1759719155694,0.00196884,4538.0,4537.9,5.8584]
[1759719156893,0.62006884,4538.0,4537.9,0.8584]
[1759719157090,1.01116884,4538.0,4537.9,0.4985]
[1759719157393,1.01116884,4538.0,4537.9,0.8627]
[1759719157595,0.62006884,4538.0,4537.9,0.8627]
[1759719158495,0.86306884,4538.0,4537.7,0.00221264]
[1759719158692,0.00196884,4538.0,4537.9,0.8637]
[1759719160901,0.6023,4539.6,4539.5,0.8637]
[1759719161197,0.6181,4539.6,4539.5,0.8637]
[1759719161799,0.62020508,4539.6,4539.5,0.8637]
[1759719162203,0.86320508,4539.6,4539.5,0.8637]
[1759719162388,0.86320508,4539.6,4539.5,0.4995]
[1759719162692,1.08720508,4539.6,4539.5,0.2475]
[1759719163296,0.22610508,4539.6,4539.5,0.8637]
[1759719163896,0.60440508,4539.6,4539.5,0.8637]
[1759719164095,1.0092,4539.0,4538.9,0.4995]
[1759719164898,1.0092,4539.0,4538.9,0.2475]
[1759719165095,1.0092,4539.0,4538.2,3.7073]
[1759719165096,0.8611,4538.3,4538.2,3.7073]
[1759719165296,0.3783,4538.3,4538.2,4.46797]
[1759719165495,0.224,4538.5,4538.4,0.8637]
[1759719165793,0.224,4538.7,4538.4,0.8637]
[1759719166004,1.0092,4538.5,4538.4,0.4995]
[1759719166205,1.0092,4538.5,4538.4,0.2475]
[1759719166804,0.5264,4539.0,4538.4,0.8637]
[1759719166995,0.6023,4539.0,4538.9,0.8637]
[1759719167195,0.8421,4539.0,4538.9,0.8637]
[1759719167792,0.8421,4539.0,4538.8,3.2078]
[1759719167793,0.3672,4538.9,4538.8,3.2078]
[1759719167992,0.00210508,4539.6,4538.8,3.6909]
[1759719167993,0.3672,4539.4,4538.8,3.6909]
[1759719168198,0.8655,4539.4,4539.3,0.233]
[1759719168399,1.34997359,4539.4,4539.3,0.233]
[1759719168702,0.48447359,4539.4,4539.3,0.8395]
[1759719169303,0.3672,4539.5,4539.3,0.87947]
[1759719169505,0.6144,4539.5,4539.4,0.8395]
[1759719169699,1.32310741,4539.5,4539.4,0.8395]
[1759719170506,1.09910741,4539.5,4539.4,0.8395]
[1759719171002,1.24390741,4539.5,4539.4,0.4831]
[1759719171803,1.24390741,4539.5,4539.3,3.2078]
[1759719171804,0.39637,4539.4,4539.3,3.2078]
[1759719172010,0.8655,4539.1,4539.0,0.233]
[1759719172400,1.48589,4539.1,4539.0,0.233]
[1759719172596,0.39641,4538.9,4538.8,3.2078]
[1759719172802,1.26191,4538.9,4538.8,3.4408]
[1759719173007,1.40666,4539.5,4539.4,0.233]
[1759719173306,0.48465599,4539.5,4539.4,0.8395]
[1759719173501,0.22610508,4539.6,4539.4,0.4831]
[1759719173809,0.22610508,4539.6,4539.5,0.8395]
[1759719173998,1.07787816,4539.6,4539.5,1.23586]
[1759719174309,1.32507816,4539.6,4539.5,1.23586]
[1759719175007,0.61650508,4539.6,4539.5,1.23586]
[1759719175208,0.86760508,4539.6,4539.5,0.4831]
[1759719175909,0.00210508,4539.6,4539.5,0.8395]
[1759719176304,0.36930508,4539.6,4539.5,0.8395]
[1759719176705,0.61650508,4539.6,4539.5,0.4831]
[1759719177010,0.86760508,4539.6,4539.5,0.4831]
[1759719178101,1.351929,4539.6,4539.5,0.4831]
[1759719178709,0.6431,4539.5,4539.4,0.233]
[1759719179006,1.12742392,4539.5,4539.4,0.233]
[1759719179308,1.49462392,4539.5,4539.4,0.233]
[1759719179504,0.8655,4539.4,4539.3,3.2078]
[1759719180310,1.26186,4539.4,4539.3,3.2078]
[1759719180512,0.8655,4538.9,4538.8,3.83721]
[1759719180802,0.8655,4538.9,4538.8,4.08731]
[1759719181004,0.8655,4538.9,4538.8,4.44371]
[1759719181604,0.8655,4538.9,4538.8,3.6909]
[1759719182409,0.6144,4539.4,4539.3,0.8395]
[1759719182611,1.32313538,4539.4,4539.3,0.8395]
[1759719183108,1.09913538,4539.4,4539.3,0.8395]
[1759719183310,0.48473538,4539.4,4539.3,0.8395]
[1759719183708,0.85193538,4539.4,4539.3,4.0473]
[1759719184106,0.48473538,4539.4,4539.3,4.0473]
[1759719184406,0.00210508,4539.6,4539.5,0.8395]
[1759719184917,0.36930508,4539.6,4539.5,0.8395]
[1759719185111,0.8542887,4539.6,4539.5,0.8395]
[1759719186606,1.1014887,4539.6,4539.5,0.8395]
[1759719187629,0.4870887,4539.6,4539.5,5.9722]
[1759719187917,0.00210508,4539.6,4539.5,0.9722]
[1759719188515,0.00210508,4539.6,4539.5,0.8395]
[1759719188912,0.86760508,4539.6,4539.5,0.4831]
[1759719190016,0.86760508,4539.6,4539.5,0.8395]
[1759719190319,0.86760508,4539.6,4539.3,3.2078]
[1759719190320,0.8655,4539.4,4539.3,3.4408]
[1759719191516,0.6144,4539.4,4539.3,4.0473]
[1759719191821,0.3672,4539.4,4539.3,4.0473]
[1759719192016,0.3672,4539.5,4539.4,0.75277]
[1759719192214,0.3672,4539.5,4539.4,1.23587]
[1759719192622,0.6144,4539.5,4539.4,1.23587]
[1759719193725,0.00210508,4539.6,4539.5,0.9722]
[1759719194216,0.61650508,4539.6,4539.5,0.8395]
[1759719194820,0.00210508,4539.6,4539.5,0.9722]
[1759719195327,0.8655,4540.9,4540.8,0.4831]
[1759719195520,1.35118036,4540.9,4540.8,0.4831]
[1759719196226,1.10008036,4540.9,4540.8,1.23574]
[1759719196425,0.00198973,4540.9,4540.8,1.23574]
[1759719197921,0.82438973,4540.9,4540.6,0.224]
[1759719198122,0.46568973,4540.9,4540.8,0.2297]
[1759719198521,0.46568973,4540.9,4540.8,0.4678]
[1759719198720,0.46568973,4540.9,4540.5,3.2078]
[1759719198721,0.39626,4540.6,4540.5,3.2078]
[1759719198924,0.39626,4540.6,4540.2,0.2297]
[1759719198925,0.2359,4540.3,4540.2,0.2297]
[1759719199126,0.4637,4540.3,4540.2,0.4678]
[1759719199420,0.5865,4540.3,4540.2,0.8294]
[1759719200020,0.5865,4540.8,4540.7,0.4678]
[1759719200317,1.07130707,4540.8,4540.7,3.6756]
[1759719202028,0.00198973,4540.9,4540.8,0.3616]
[1759719202225,0.00198973,4540.9,4540.8,1.22564]
[1759719204625,0.5865,4541.8,4541.7,0.4678]
[1759719205728,0.58827629,4541.8,4541.7,0.46964278]
[1759719206429,1.22033629,4541.8,4541.7,0.00184278]
[1759719208235,1.44433629,4541.8,4541.7,0.00184278]
[1759719208428,0.9648,4541.0,4540.9,3.2078]
[1759719209439,0.9648,4541.0,4540.9,3.21050441]
[1759719209634,0.9648,4541.0,4540.9,3.44020441]
[1759719210840,1.36103,4541.0,4540.9,3.44020441]
[1759719211247,1.36103,4541.0,4540.9,0.00270441]
[1759719212641,0.9648,4541.0,4540.9,0.00270441]
[1759719213041,1.1878,4541.0,4540.9,0.00270441]
[1759719213251,0.9648,4541.0,4540.9,0.23240441]
[1759719213436,1.1888,4541.0,4540.9,0.23240441]
[1759719214744,1.1888,4541.0,4540.9,0.00270441]
[1759719214946,1.1888,4541.0,4540.9,0.63623441]
[1759719215247,0.9648,4541.0,4540.9,0.86743441]
[1759719215447,1.1888,4541.0,4540.9,0.86743441]
[1759719216448,1.1888,4541.0,4540.9,0.47120441]
[1759719216745,1.1888,4541.0,4540.9,0.24000441]
[1759719217141,1.1888,4541.0,4540.9,0.00270441]
[1759719217342,1.1888,4541.0,4540.9,0.24000441]
[1759719218141,0.9648,4541.0,4540.9,0.47120441]
[1759719219351,1.44835622,4541.0,4540.9,0.00270441]
[1759719219747,0.8161,4540.3,4540.2,3.2078]
[1759719219949,1.52265622,4540.3,4540.2,3.2078]
[1759719220543,1.29965622,4540.3,4540.2,3.6763]
[1759719220856,0.223,4540.5,4540.4,0.4685]
[1759719221052,0.223,4540.5,4540.4,0.8095]
[1759719221352,0.8094,4540.6,4540.5,0.86477]
[1759719221556,1.29316197,4540.6,4540.5,0.86477]
[1759719221853,1.29316197,4540.6,4540.5,1.20577]
[1759719222152,1.52386197,4540.6,4540.5,0.86477]
[1759719223152,1.29986197,4540.6,4540.5,0.86477]
[1759719224956,1.29986197,4540.6,4540.5,0.4685]
[1759719226553,1.69612197,4540.6,4540.5,0.4685]
[1759719226759,1.29986197,4540.6,4540.5,0.4685]
[1759719227158,1.52286197,4540.6,4540.5,0.4685]
[1759719228160,1.0391,4540.6,4540.5,0.4685]
[1759719229559,0.9501,4541.0,4540.9,0.87033]
[1759719229862,1.65740222,4541.0,4540.9,0.87033]
[1759719231458,1.43440222,4541.0,4540.9,0.87033]
[1759719231659,1.65740222,4541.0,4540.9,0.87033]
[1759719232057,1.65740222,4541.0,4540.9,1.20293]
[1759719232058,1.29200222,4541.0,4540.9,1.20293]
[1759719232262,0.5852,4541.5,4541.4,1.20289]
[1759719232468,1.21238131,4541.5,4541.4,1.20289]
[1759719232869,1.21238131,4541.5,4541.4,4.41069]
[1759719233166,1.21238131,4541.5,4540.9,3.2078]
[1759719233167,1.29198785,4541.5,4540.9,3.2078]
[1759719233368,1.29198785,4541.5,4539.0,0.1443]
[1759719233369,0.39638,4539.3,4539.0,0.1443]
[1759719233569,0.39643,4538.7,4538.5,0.1443]
[1759719233862,3.73830509,4538.6,4538.0,0.1443]
[1759719234071,3.2078,4538.4,4538.0,0.1443]
[1759719234369,0.39648,4538.1,4538.0,0.1443]
[1759719234564,0.39823897,4538.1,4538.0,0.14685962]
[1759719234865,5.88252682,4538.1,4538.0,0.14685962]
[1759719235464,5.88252682,4538.1,4538.0,0.47945962]
[1759719236161,6.10652682,4538.1,4538.0,0.47945962]
[1759719236766,5.48604682,4538.1,4538.0,0.47945962]
[1759719236964,5.71004682,4538.1,4538.0,0.47945962]
[1759719237664,0.48604682,4538.1,4538.0,0.71635962]
[1759719237866,0.71004682,4538.1,4538.0,0.71635962]
[1759719238265,0.22575897,4538.1,4538.0,0.71635962]
[1759719238961,0.22575897,4538.1,4538.0,0.47945962]
[1759719239364,0.22575897,4538.1,4537.5,0.1443]
[1759719239365,0.39651,4537.7,4537.6,0.3326]
[1759719239674,0.39655,4537.3,4537.2,0.3326]
[1759719239865,0.62055,4537.3,4537.2,0.3326]
[1759719240367,0.39655,4537.3,4537.2,0.33481742]
[1759719240568,0.62055,4537.3,4537.2,0.33481742]
[1759719241170,0.39661,4536.6,4536.0,0.1443]
[1759719241375,0.224,4536.6,4536.0,0.1443]
[1759719241566,0.62061,4536.6,4536.0,0.1443]
[1759719242272,0.62061,4536.6,4536.5,0.14604658]
[1759719242574,0.224,4536.6,4536.5,0.38294658]
[1759719243171,0.224,4536.6,4536.5,0.71554658]
[1759719243472,3.2078,4537.4,4537.3,0.3326]
[1759719243770,3.2078,4537.4,4537.2,0.39655]
[1759719243771,3.2078,4537.9,4537.6,0.3326]
[1759719243972,0.224,4537.9,4537.8,0.3326]
[1759719244169,0.00175897,4538.1,4538.0,0.4769]
[1759719244469,0.00175897,4538.1,4538.0,0.87339]
[1759719246369,3.2078,4538.9,4538.6,0.3326]
[1759719246568,0.224,4538.8,4538.6,0.3326]
[1759719246768,0.224,4538.7,4538.6,0.3326]
[1759719246968,3.2078,4538.9,4538.6,0.3326]
[1759719247171,3.2078,4538.9,4538.8,0.72902]
[1759719247479,3.20936181,4538.9,4538.8,0.72902]
[1759719247869,0.00156181,4538.9,4538.8,3.93682]
[1759719249565,0.00156181,4538.9,4538.8,3.5404]
[1759719249881,0.00156181,4538.9,4538.8,0.3326]
[1759719250469,0.39648,4538.1,4538.0,0.1443]
[1759719250674,0.62048,4538.1,4538.0,0.4769]
[1759719251372,0.224,4538.1,4538.0,0.4769]
[1759719251676,0.00156181,4538.9,4538.5,0.1443]
[1759719251972,0.224,4538.8,4538.6,0.3326]
[1759719252172,0.62042,4538.8,4538.6,0.3326]
[1759719252474,0.62042,4538.8,4538.5,0.1443]
[1759719252475,0.39643,4538.6,4538.5,0.1443]
[1759719252871,0.39643,4538.6,4538.5,0.4769]
[1759719254579,0.39647,4538.2,4538.1,0.3326]
[1759719254780,0.62047,4538.2,4538.1,0.3326]
[1759719255281,0.62047,4538.2,4538.1,0.5695]
[1759719257274,0.39647,4538.2,4538.1,0.8067]
[1759719257477,0.62047,4538.2,4538.1,0.8067]
[1759719258887,0.224,4538.2,4538.1,0.8067]
[1759719261876,3.60577181,4538.9,4538.8,0.8433]
[1759719262083,3.60577181,4538.9,4538.8,0.3727]
[1759719262084,4.34293381,4538.9,4538.8,0.3727]
[1759719263286,0.51472381,4538.9,4538.8,0.8433]
[1759719263483,0.73872381,4538.9,4538.8,0.8433]
[1759719265583,0.51472381,4538.9,4538.8,0.8433]
[1759719265787,0.73872381,4538.9,4538.8,0.8433]
[1759719272889,0.73772381,4538.9,4538.8,0.8433]
[1759719273094,0.51472381,4538.9,4538.8,0.8433]
[1759719273292,1.69010945,4538.9,4538.8,0.8433]
[1759719273786,1.17694745,4538.9,4538.8,0.8433]
[1759719273992,0.51472381,4538.9,4538.8,4.0511]
[1759719274590,0.51472381,4538.9,4538.8,0.8433]
[1759719278597,0.51472381,4538.9,4538.8,1.23972]
[1759719278795,0.51472381,4538.9,4538.8,0.8433]
[1759719283499,0.00156181,4538.9,4538.8,0.8433]
[1759719283802,1.17538564,4539.9,4539.8,0.4655]
[1759719283997,3.2078,4540.0,4539.9,1.20872]
[1759719284197,3.71777497,4540.0,4539.9,0.8124]
[1759719284796,3.72035648,4540.0,4539.9,0.81522977]
[1759719285498,0.51255648,4540.0,4539.9,0.81522977]
[1759719286494,0.00258151,4540.0,4539.9,0.81522977]
[1759719288700,0.39889151,4540.0,4539.9,0.81522977]
[1759719288905,3.33979369,4540.0,4539.9,0.00282977]
[1759719289104,3.84143635,4540.0,4539.9,0.00282977]
[1759719289406,8.84143635,4540.0,4539.9,0.00282977]
[1759719289903,3.44512635,4540.0,4539.9,0.00282977]
[1759719290092,3.44512635,4540.0,4539.9,0.37492977]
[1759719291203,2.94348369,4540.0,4539.9,0.60282977]
[1759719291403,3.4451826,4540.0,4539.9,0.60282977]
[1759719292107,3.4451826,4540.0,4539.9,0.37492977]
[1759719294204,3.4451826,4540.0,4539.9,0.60282977]
[1759719295203,3.4451826,4540.0,4539.9,0.84882977]
[1759719298012,3.2221826,4540.0,4539.9,0.84882977]
[1759719298216,3.4451826,4540.0,4539.9,0.84882977]
[1759719299010,1.50388547,4540.0,4539.9,0.84882977]
[1759719300203,0.50428042,4540.0,4539.9,0.84882977]
[1759719300507,0.00258151,4540.0,4539.9,1.24514977]
[1759719300703,1.17538564,4541.2,4539.9,1.24514977]
[1759719300704,3.2078,4541.9,4541.1,0.4739]
[1759719301006,3.2078,4541.9,4541.1,0.3721]
[1759719301007,3.2078,4541.4,4541.1,0.3721]
[1759719301209,0.39621,4541.2,4541.1,0.3721]
[1759719301508,0.49726371,4541.2,4541.0,0.3723]
[1759719301705,0.0025633,4541.2,4541.1,0.3721]
[1759719301902,0.49982701,4541.2,4541.1,0.6]
[1759719302106,1.27643206,4541.2,4541.1,0.6]
[1759719302307,0.77916835,4541.2,4541.1,0.846]
[1759719303107,0.2255633,4541.2,4541.1,0.846]
[1759719304515,3.93025959,4541.2,4540.6,0.6]
[1759719304813,0.49689629,4541.1,4541.0,0.5165]
[1759719305112,0.89311629,4541.1,4541.0,0.5165]
[1759719306312,0.39624,4540.9,4540.5,0.1444]
[1759719306504,2.71681791,4540.7,4540.6,0.3721]
[1759719307014,2.71681791,4540.7,4540.6,0.6]
[1759719307213,2.71681791,4540.7,4540.6,0.846]
[1759719307516,2.93981791,4540.7,4540.6,0.846]
[1759719308012,3.6065833,4541.2,4540.5,0.54066]
[1759719308013,3.2103633,4541.2,4541.1,0.846]
[1759719308313,3.93035098,4541.2,4541.1,0.846]
[1759719310518,4.32656098,4541.2,4541.1,0.846]
[1759719311518,7.04337889,4541.2,4541.1,0.3721]
[1759719312519,6.64716889,4541.2,4541.1,0.3721]
[1759719312713,6.64716889,4541.2,4541.1,0.846]
[1759719313825,6.42416889,4541.2,4541.1,0.846]
[1759719314128,6.64716889,4541.2,4541.1,0.846]
[1759719315024,6.64716889,4541.2,4541.1,0.6]
[1759719315625,0.0025633,4541.2,4541.1,4.0538]
[1759719316630,0.0025633,4541.2,4541.1,9.0538]
[1759719318325,4.38318564,4542.3,4542.2,0.8334]
[1759719318530,3.92771334,4542.3,4542.2,0.8334]
[1759719319333,3.92970274,4542.3,4542.2,0.8334]
[1759719321425,3.70670274,4542.3,4542.2,0.8334]
[1759719321626,3.92970274,4542.3,4542.2,0.8334]
[1759719323029,0.39612,4542.2,4542.0,0.5162]
[1759719323333,0.49691334,4542.1,4542.0,0.5162]
[1759719323931,0.49691334,4542.1,4542.0,0.7416]
[1759719325431,0.71991334,4542.1,4542.0,0.7416]
[1759719328025,0.223,4542.1,4542.0,0.9805]
[1759719329430,0.49699205,4542.1,4542.0,0.9805]
[1759719329630,0.71999205,4542.1,4542.0,0.9805]
[1759719332042,0.71999205,4542.1,4542.0,0.7416]
[1759719332836,0.71999205,4542.1,4542.0,0.9805]
[1759719333637,0.223,4542.1,4542.0,0.9805]
[1759719335842,0.77799972,4542.3,4542.2,0.8174]
[1759719336042,1.49787385,4542.3,4542.2,0.8174]
[1759719339944,1.27487385,4542.3,4542.2,0.8174]
[1759719340142,1.49787385,4542.3,4542.2,0.8174]
[1759719341146,3.2078,4543.4,4542.5,0.1393]
[1759719341350,0.39605,4543.0,4542.8,0.8174]
[1759719341546,4.22881032,4542.9,4542.8,0.8174]
[1759719341743,0.39609,4542.6,4542.5,0.4744]
[1759719341942,1.39510032,4542.6,4542.5,0.7158]
[1759719342250,1.39755848,4542.6,4542.5,0.7158]
[1759719342952,1.39755848,4542.6,4542.5,0.4744]
[1759719347053,1.55266339,4542.6,4542.5,0.4744]
[1759719347351,0.39621,4541.2,4541.1,0.2414]
[1759719347649,2.35932523,4541.2,4541.1,0.2414]
[1759719348648,2.35932523,4541.2,4540.6,3.6694]
[1759719348649,0.63755,4540.7,4540.6,3.6694]
[1759719348848,0.86055,4540.7,4540.6,3.6694]
[1759719349449,0.86055,4540.7,4540.6,0.826]
[1759719349649,1.10345,4540.7,4540.6,0.826]
[1759719350149,2.03456523,4540.7,4540.6,0.826]
[1759719351049,1.63831523,4540.7,4540.6,0.826]
[1759719351850,0.2413,4540.2,4540.1,3.4337]
[1759719352043,0.2413,4540.2,4540.1,3.6694]
[1759719352449,0.2413,4540.2,4540.1,4.0338]
[1759719352850,0.93111523,4540.3,4540.2,0.5903]
[1759719353056,0.93111523,4540.3,4540.2,0.826]
[1759719354951,6.75491523,4540.3,4539.9,0.00282977]
[1759719355157,4.45821,4540.0,4539.9,0.00282977]
[1759719355357,5.1762056,4540.0,4539.9,0.00282977]
[1759719355555,6.10732083,4540.0,4539.9,0.00282977]
[1759719356348,6.10732083,4540.0,4539.0,0.3611]
[1759719356349,0.88059,4539.1,4539.0,0.3611]
[1759719356661,1.15411523,4539.1,4539.0,0.5968]
[1759719357159,1.15411523,4539.1,4539.0,0.9612]
[1759719357356,1.15411523,4539.1,4539.0,0.96341341]
[1759719357357,1.1561042,4539.1,4539.0,0.96341341]
[1759719358757,0.00198897,4539.1,4539.0,0.96341341]
[1759719360267,3.2078,4539.5,4539.4,0.2259]
[1759719360560,0.3396,4540.7,4540.4,0.826]
[1759719360561,3.2078,4540.5,4540.4,0.826]
[1759719360765,3.4308,4540.5,4540.4,0.826]
[1759719360974,3.2078,4540.5,4540.4,0.826]
[1759719361170,3.6721,4540.5,4540.4,0.826]
[1759719361560,3.6744909,4540.5,4540.4,0.826]
[1759719361760,3.4514909,4540.5,4540.4,0.826]
[1759719362259,3.2101909,4540.5,4540.4,0.826]
[1759719362769,3.4514909,4540.5,4540.4,0.826]
[1759719363266,3.2101909,4540.5,4540.4,1.22228]
[1759719363661,3.2101909,4540.5,4540.4,0.826]
[1759719363864,3.4514909,4540.5,4540.4,0.826]
[1759719364065,0.0023909,4540.5,4540.4,5.826]
[1759719364264,0.3986609,4540.5,4540.4,5.826]
[1759719364561,0.0023909,4540.5,4540.4,5.826]
[1759719368760,0.39627,4540.6,4540.5,0.1352]
[1759719369066,3.2078,4541.5,4541.4,0.2357]
[1759719369260,3.60398,4541.5,4541.4,0.826]
[1759719369461,3.84528,4541.5,4541.4,0.826]
[1759719369861,3.84729403,4541.5,4541.4,0.826]
[1759719370063,3.60599403,4541.5,4541.4,0.826]
[1759719371165,3.84729403,4541.5,4541.4,0.826]
[1759719373863,3.60599403,4541.5,4541.4,0.826]
[1759719374065,3.20981403,4541.5,4541.4,0.826]
[1759719374465,3.45111403,4541.5,4541.4,0.826]
[1759719377073,0.24331403,4541.5,4541.4,0.826]
[1759719380972,0.81791403,4541.5,4541.4,0.3644]
[1759719381168,1.19191,4541.2,4541.1,0.3286]
[1759719381371,2.12302523,4541.2,4541.1,0.5483]
[1759719381571,1.19193,4540.9,4540.8,3.2078]
[1759719381766,1.41493,4540.9,4540.8,3.2078]
[1759719381965,1.41493,4540.9,4540.6,0.3286]
[1759719381966,0.39625,4540.7,4540.6,0.3286]
[1759719382165,0.86028,4540.4,4540.3,0.5483]
[1759719383176,1.19198,4540.4,4540.3,0.5483]
[1759719383479,1.19198,4540.4,4540.3,0.3286]
[1759719383670,0.86033,4539.8,4539.7,3.6547]
[1759719383874,1.19203,4539.8,4539.7,3.4275]
[1759719384076,1.19203,4539.8,4539.7,3.2078]
[1759719384273,1.19203,4539.8,4539.7,0.3286]
[1759719384978,1.19205,4539.6,4539.5,0.3286]
[1759719385178,1.0187,4539.6,4539.5,0.3286]
[1759719385568,1.0187,4539.6,4539.5,0.5483]
[1759719385769,0.687,4539.6,4539.5,0.9088]
[1759719385981,0.464,4539.6,4539.5,0.9088]
[1759719387476,0.7957,4539.6,4539.5,0.9088]